[Event "NY Presidents Day Schiller-C 2024"]
[Site "New York"]
[Date "2024.02.19"]
[Round "7.1"]
[White "Czebe, Attila"]
[Black "Tang, Benjamin"]
[Result "1-0"]
[ECO "C00"]
[WhiteElo "2346"]
[BlackElo "2167"]
[Annotator "TA"]
[PlyCount "67"]
[EventDate "2024.02.14"]
[EventType "schev"]
[EventCountry "USA"]
[SourceTitle "playchess.com"]
[Source "ChessBase"]
[SourceQuality "1"]
[TimeControl "5400+30"]

{[%evp 15,67,-12,0,-3,0,-30,0,-9,0,-15,-5,-30,0,-34,-3,-8,-15,-22,-38,-39,-48,-37,-9,-50,-41,-41,-45,-47,0,0,33,32,472,468,476,292,476,483,499,500,475,479,588,598,717,665,852,830,1031,1033,1241,1236,2034,1064]} 1. e4 {[%emt 0:00:02]} e6 {[%emt 0:01:00]} 2. d3 {[%emt 0:00:26]} d5 {[%emt 0:00:05]} 3. Nd2 {[%emt 0:00:05]} c5 {[%emt 0:00:04]} 4. g3 {[%emt 0:00:15]} Nc6 {[%emt 0:00:37]} 5. Bg2 {[%emt 0:00:02]} Nf6 {[%emt 0:00:37]} 6. Ngf3 {[%emt 0:00:05]} Be7 {[%emt 0:00:06]} 7. O-O {[%emt 0:00:08]} O-O {[%emt 0:00:05]} 8. Re1 {[%emt 0:00:05]} Qc7 {[%emt 0:00:25]} 9. exd5 {[%emt 0:02:41]} exd5 {[%emt 0:02:02]} 10. Nb3 {[%emt 0:00:41]} Bf5 {[%emt 0:04:36]} 11. Bf4 {[%emt 0:00:24] The position is equal.} Qd7 {[%emt 0:00:27]} 12. Ne5 {[%emt 0:08:58]} Nxe5 {[%emt 0:00:19]} 13. Rxe5 {[%emt 0:00:15]} Be6 {[%emt 0:04:41]} ({Don't go for} 13... Bd6 $2 14. Rxf5 Qxf5 15. Bxd6 $18) 14. Qd2 {[%emt 0:00:06]} Rac8 {[%emt 0:03:42]} 15. Rae1 {[%emt 0:01:44][%cal Og2h3]} Rfe8 {[%emt 0:03:04]} 16. h3 {[%emt 0:06:26]} b6 {[%emt 0:04:09]} 17. g4 {[%emt 0:02:23]} Bd6 {[%emt 0:04:12]} 18. R5e2 {[%emt 0:00:19]} h6 {[%emt 0:02:33] Dodges Bg5} 19. Be5 {[%emt 0:01:47]} Bxe5 {[%emt 0:00:30]} 20. Rxe5 {[%emt 0:00:30]} d4 {[%emt 0:00:30]} 21. Qf4 {[%emt 0:00:30]} Bd5 {[%emt 0:08:28]} (21... Nd5 $15 22. Bxd5 Bxd5) 22. Bxd5 $11 {[%emt 0:12:45]} Nxd5 {[%emt 0:00:35]} 23. Qf5 {[%emt 0:00:10]} Red8 {[%emt 0:03:35][%mdl 8192] [#] This move loses the game for Black.} (23... Re6 $14) 24. Rxd5 $1 $18 {[%emt 0:00:32][%mdl 512]} Qxd5 {[%emt 0:00:30] [#]} 25. Re8+ $3 {[%emt 0:00:30][%mdl 512]} Rxe8 {[%emt 0:00:30][%cal Bd8e8,Be8e2,Be2c2][%mdl 32]} 26. Qxd5 {[%emt 0:00:30] White is clearly winning.} Re2 {[%emt 0:00:30]} 27. Qd7 {[%emt 0:00:30]} Rce8 {[%emt 0:00:30]} 28. Qxa7 {[%emt 0:00:30]} Rxc2 {[%emt 0:00:30]} 29. Qxb6 {[%emt 0:00:30]} c4 {[%emt 0:07:06]} 30. dxc4 {[%emt 0:01:31]} d3 {[%emt 0:00:10][%cal Bd4d3,Bd3d2][%mdl 32]} 31. Qd4 {[%emt 0:02:18]} Re1+ {[%emt 0:01:17]} 32. Kg2 {[%emt 0:00:13] Strongly threatening Qd8+.} Rd1 {[%emt 0:00:03]} 33. a4 {[%emt 0:00:45]} d2 {[%emt 0:00:44]} 34. Qd8+ {[%emt 0:00:07] Weighted Error Value: White=0.05 (flawless) /Black=0.57.  Loses game:     	---       	Black=1      Mistake:       	---       	Black=1      Inaccurate:     	White=3     	Black=5      OK:         	White=8     	Black=4      Best:        	White=2     	---        Brilliant:      	White=2     	---} 1-0

[Event "NY Presidents Day Schiller-C 2024"]
[Site "New York"]
[Date "2024.02.19"]
[Round "7.2"]
[White "Quesada Vera, Liordis"]
[Black "Meduri, Aakaash"]
[Result "1-0"]
[ECO "A21"]
[WhiteElo "2337"]
[BlackElo "1956"]
[Annotator "TA"]
[PlyCount "39"]
[EventDate "2024.02.14"]
[EventType "schev"]
[EventCountry "USA"]
[SourceTitle "playchess.com"]
[Source "ChessBase"]
[SourceQuality "1"]
[TimeControl "5400+30"]

{[%evp 9,39,9,50,41,45,39,85,43,110,104,141,105,132,120,166,179,292,264,344,352,448,370,374,366,341,357,380,343,526,314,300,302]} 1. c4 {[%emt 0:13:50]} f5 {[%emt 0:01:34]} 2. g3 {[%emt 0:03:31]} Nf6 {[%emt 0:00:47]} 3. Bg2 {[%emt 0:00:06]} d6 {[%emt 0:00:51]} 4. Nc3 {[%emt 0:00:12]} e5 {[%emt 0:00:27]} 5. d4 {[%emt 0:01:25]} Nbd7 {[%emt 0:02:40][%cal Bb8d7,Bd7e5,Be5c4][%mdl 32]} 6. e3 {[%emt 0:02:13]} Be7 {[%emt 0:00:52]} 7. Qc2 {[%emt 0:00:11]} O-O {[%emt 0:01:10]} (7... Nb6 $14) 8. Nge2 {[%emt 0:01:44][%cal Bg1e2,Be2d4,Bd4b5][%mdl 32] White is better.} (8. Qxf5 {keeps more tension.} exd4 9. exd4 Ne5 10. Qc2) 8... Qe8 {[%emt 0:01:50]} ({Better is} 8... e4 $14) 9. Qxf5 $16 {[%emt 0:01:58]} exd4 {[%emt 0:01:32]} 10. Nxd4 {[%emt 0:04:23]} Ne5 {[%emt 0:02:08]} 11. Qc2 {[%emt 0:00:08] White has more active pieces.} Nfg4 {[%emt 1:22:09]} (11... c5 $16) 12. f4 $18 {[%emt 0:05:43] aiming for Nd5.} c5 {[%emt 0:00:00]} (12... Nc6 $142) 13. Ndb5 {[%emt 0:02:17]} Bf5 {[%emt 0:00:00]} 14. e4 {[%emt 0:00:22]} Nxc4 {[%emt 0:00:00]} 15. Nd5 {[%emt 0:59:57] Inhibits Nge3.} (15. exf5 Nge3 16. Bxe3 Nxe3 $18) 15... Qxb5 {[%emt 0:00:00]} 16. Nxe7+ {[%emt 0:00:00]} Kh8 {[%emt 0:00:00]} 17. Nxf5 {[%emt 0:00:00]} Rxf5 {[%emt 0:00:00]} 18. Qe2 {[%emt 0:00:00] Prevents Nce3.} ({Worse is} 18. exf5 Re8+ 19. Be4 Qc6 $11) 18... Nf6 {[%emt 0:00:00]} (18... Rff8 {keeps fighting.} 19. O-O (19. Qxg4 Nxb2 20. a4 Nd3+ 21. Kd2 Qb4+ 22. Kxd3 Qd4+ 23. Ke2 Qxa1 $16) 19... Nf6) 19. Kf2 {[%emt 0:00:00]} (19. exf5 Re8 20. Bf3 Rxe2+ 21. Bxe2 Qb4+ 22. Kf2 d5 $17 (22... Nxb2 $2 23. Bxb2 Qxb2 24. Rhd1 $19)) 19... Re8 {[%emt 0:00:00]} 20. b3 {[%emt 0:00:00] Prevents d5. Black got outplayed after the opening.   Weighted Error Value: White=0.39/Black=0.57.  Mistake:       	---       	Black=5      Inaccurate:     	White=2     	Black=2      OK:         	White=5     	Black=2      Best:        	White=3     	Black=1} 1-0

[Event "NY Presidents Day Schiller-C 2024"]
[Site "New York"]
[Date "2024.02.19"]
[Round "7.3"]
[White "Yoo, Eugene"]
[Black "Perez Avendano, Paul Omar"]
[Result "1-0"]
[ECO "A57"]
[WhiteElo "2168"]
[BlackElo "2213"]
[Annotator "RC"]
[PlyCount "53"]
[EventDate "2024.02.14"]
[EventType "schev"]
[EventCountry "USA"]
[SourceTitle "playchess.com"]
[Source "ChessBase"]
[SourceQuality "1"]
[TimeControl "5400+30"]

1. d4 {[%emt 0:00:01]} Nf6 {[%emt 0:02:38]} 2. Nf3 {[%emt 0:00:20]} c5 {[%emt 0:00:21]} 3. d5 {[%emt 0:00:46]} b5 {[%emt 0:01:00]} 4. c4 {[%emt 0:04:44]} bxc4 {[%emt 0:02:24]} 5. Nc3 {[%emt 0:00:47]} d6 {[%emt 0:01:30]} 6. e4 {[%emt 0:02:46]} Nbd7 {[%emt 0:00:05]} 7. Bxc4 {[%emt 0:04:43]} g6 {[%emt 0:00:52]} 8. Bb5 {[%emt 0:09:35]} Qc7 {[%emt 0:05:37]} 9. e5 {[%emt 0:15:34]} dxe5 {[%emt 0:01:46]} 10. Qe2 {[%emt 0:00:30]} e4 {[%emt 0:07:42]} 11. d6 {[%emt 0:13:23]} Qb7 {[%emt 0:19:27]} 12. Ne5 {[%emt 0:08:10]} Rb8 {[%emt 0:29:00]} 13. dxe7 {[%emt 0:11:40]} Bg7 {[%emt 0:03:50]} 14. Qc4 {[%emt 0:08:00]} Nd5 {[%emt 0:03:59]} 15. Bc6 {[%emt 0:03:35]} Bxe5 {[%emt 0:03:10]} 16. Bxb7 {[%emt 0:01:22]} N5b6 {[%emt 0:00:31]} 17. Qxe4 {[%emt 0:01:18]} Bxb7 {[%emt 0:00:06]} 18. Qg4 {[%emt 0:01:51]} h5 {[%emt 0:01:00]} 19. Qh3 {[%emt 0:02:37]} Nf6 {[%emt 0:02:03]} 20. Bg5 {[%emt 0:01:22]} Nh7 {[%emt 0:03:45]} 21. Be3 {[%emt 0:01:31]} Nc4 {[%emt 0:00:56]} 22. O-O-O {[%emt 0:01:10]} Nf6 {[%emt 0:04:34]} 23. Bxc5 {[%emt 0:01:27]} Bf4+ {[%emt 0:01:02]} 24. Kb1 {[%emt 0:01:01]} Nd2+ {[%emt 0:03:08]} 25. Ka1 {[%emt 0:00:42]} Bc8 {[%emt 0:00:29]} 26. Qd3 {[%emt 0:01:03]} Bf5 {[%emt 0:00:02]} 27. Qd4 {[%emt 0:00:55]} 1-0

[Event "NY Presidents Day Schiller-C 2024"]
[Site "New York"]
[Date "2024.02.19"]
[Round "7.4"]
[White "Liu, Kelsey"]
[Black "Andrianov, Nikolai"]
[Result "1/2-1/2"]
[ECO "B27"]
[WhiteElo "2004"]
[BlackElo "2266"]
[Annotator "TA"]
[PlyCount "119"]
[EventDate "2024.02.14"]
[EventType "schev"]
[EventCountry "USA"]
[SourceTitle "playchess.com"]
[Source "ChessBase"]
[SourceQuality "1"]
[TimeControl "5400+30"]

{[%evp 14,119,0,16,12,24,36,2,0,0,2,0,7,0,0,0,0,0,49,0,0,0,0,0,0,0,0,-37,-38,-26,-37,-25,-31,-25,-10,-18,0,0,0,0,22,22,17,19,17,16,16,15,34,6,13,0,0,0,6,8,8,0,8,8,8,8,29,0,0,-318,0,0,0,0,0,0,0,-27,-27,-27,-24,-24,-24,-27,-27,-87,-87,-87,-87,-89,-89,-89,-89,-89,-89,-89,-89,-89,-89,-89,-89,-89,-89,-89,-89,-89,-89,-89,-89,-89,-89,-89]} 1. e4 {[%emt 0:01:32]} c5 {[%emt 0:00:14]} 2. Nf3 {[%emt 0:00:07]} g6 {[%emt 0:01:20]} 3. d4 {[%emt 0:00:14]} cxd4 {[%emt 0:01:38]} 4. Qxd4 {[%emt 0:00:10]} Nf6 {[%emt 0:00:07]} 5. Nc3 {[%emt 0:00:08]} Nc6 {[%emt 0:00:12]} 6. Qa4 {[%emt 0:00:07]} d6 {[%emt 0:01:04]} 7. e5 {[%emt 0:07:03]} dxe5 {[%emt 0:01:49]} 8. Nxe5 {[%emt 0:00:48][%cal Of1c4]} Bd7 {[%emt 0:00:25]} 9. Nxd7 {[%emt 0:00:50]} Qxd7 {[%emt 0:00:17]} 10. Bb5 {[%emt 0:01:12]} Bg7 {[%emt 0:00:26] The position is equal.} 11. O-O {[%emt 0:00:47]} O-O {[%emt 0:00:33]} 12. Rd1 {[%emt 0:02:58]} Qf5 {[%emt 0:02:27]} 13. Be3 {[%emt 0:07:27][%cal Oh2h3]} Rfc8 {[%emt 0:02:19]} 14. h3 {[%emt 0:02:00]} a6 {[%emt 0:01:56]} 15. Bd3 {[%emt 0:01:30] A strong pair of Bishops.} Qa5 {[%emt 0:01:42]} (15... Qe6 $11) 16. Be2 {[%emt 0:05:18]} (16. Qxa5 $14 {might be stronger.} Nxa5 17. Na4) 16... Qc7 $11 {[%emt 0:08:28]} 17. Qh4 {[%emt 0:03:58]} Rd8 {[%emt 0:01:37]} 18. Na4 {[%emt 0:14:21]} Rxd1+ {[%emt 0:06:26]} 19. Rxd1 {[%emt 0:00:11]} Rd8 {[%emt 0:00:19]} 20. Nb6 {[%emt 0:02:53]} Rxd1+ {[%emt 0:04:29]} 21. Bxd1 {[%emt 0:00:06]} Nd7 {[%emt 0:02:57]} 22. Nxd7 {[%emt 0:06:29]} Qxd7 {[%emt 0:00:52]} 23. Bg4 {[%emt 0:00:07]} f5 {[%emt 0:10:07]} 24. Bf3 {[%emt 0:04:22]} Nd4 {[%emt 0:05:51]} 25. Bxd4 {[%emt 0:04:54]} Bxd4 {[%emt 0:00:58]} 26. Bxb7 {[%emt 0:06:44][%mdl 4096] Endgame. KQB-KQB} Bf6 {[%emt 0:15:50]} 27. Qc4+ {[%emt 0:01:09]} Kg7 {[%emt 0:00:10]} 28. Bxa6 {[%emt 0:03:28]} Qd1+ {[%emt 0:01:04]} 29. Kh2 {[%emt 0:02:24]} Bxb2 {[%emt 0:01:24]} 30. g3 {[%emt 0:05:39]} Qd4 {[%emt 0:02:43]} 31. Qe2 {[%emt 0:04:07]} e5 {[%emt 0:00:37][%cal Be7e5,Be5e4][%mdl 32]} 32. Qf3 {[%emt 0:02:02]} e4 {[%emt 0:00:51]} 33. Qe2 {[%emt 0:02:40]} Ba3 {[%emt 0:01:14]} 34. Kg2 {[%emt 0:00:37]} Bc5 {[%emt 0:00:15]} 35. Bc4 {[%emt 0:01:17]} g5 {[%emt 0:04:09]} 36. Bb3 {[%emt 0:00:26]} Bb6 {[%emt 0:02:16]} 37. a4 {[%emt 0:02:09][%cal Oa4a5]} h6 {[%emt 0:00:36]} 38. Qe1 {[%emt 0:01:50]} f4 {[%emt 0:00:23]} 39. c3 $2 {[%emt 0:02:12][%mdl 8192] [#]} (39. a5 $11 {and White stays safe.} f3+ 40. Kf1) 39... Qd3 $2 {[%emt 0:00:34]} (39... f3+ $1 $19 40. Kh2 Qd3 (40... Qxf2+ 41. Qxf2 Bxf2 42. Bd5 $14)) 40. Qd1 {[%emt 0:00:34]} Qxd1 {[%emt 0:05:55]} 41. Bxd1 {[%emt 0:00:02] KB-KB} Kf6 {[%emt 0:00:11]} 42. gxf4 {[%emt 0:00:47]} gxf4 {[%emt 0:00:01]} 43. f3 {[%emt 0:01:16]} e3 {[%emt 0:00:14][%mdl 1024] Black has compensation.} 44. Be2 {[%emt 0:00:02]} Ke5 {[%emt 0:00:20]} 45. h4 {[%emt 0:02:38]} Ba5 {[%emt 0:00:12]} 46. c4 {[%emt 0:00:04]} Kd4 {[%emt 0:00:27]} 47. Kh3 {[%emt 0:00:25] [#]} (47. h5 $11) 47... h5 $1 $17 {[%emt 0:00:23] Black is better.} 48. Kg2 {[%emt 0:00:25]} Bd8 {[%emt 0:01:32]} 49. Kf1 {[%emt 0:01:03]} Bxh4 {[%emt 0:00:49]} 50. c5 {[%emt 0:01:01]} Kxc5 {[%emt 0:01:10]} 51. Bd3 {[%emt 0:00:05]} Bd8 {[%emt 0:02:15]} 52. Bg6 {[%emt 0:00:30]} h4 {[%emt 0:00:08]} 53. Bf5 {[%emt 0:00:04]} Kb4 {[%emt 0:00:09]} 54. Bd7 {[%emt 0:00:11]} Kc3 {[%emt 0:00:29][%cal Oh4h3] ( -> ...h3!)} 55. Ke2 {[%emt 0:00:03]} Kb3 {[%emt 0:00:22]} 56. Kd3 {[%emt 0:00:09]} Ba5 {[%emt 0:00:16]} 57. Ke2 {[%emt 0:00:13]} Kc3 {[%emt 0:00:28]} 58. Be6 {[%emt 0:00:05]} Kb4 {[%emt 0:01:06]} 59. Bd7 {[%emt 0:00:02]} Kc4 {[%emt 0:00:08]} 60. Be6+ {[%emt 0:00:05] Weighted Error Value: White=0.17 (very precise) /Black=0.13 (very precise) .  Loses game:     	White=1     	---        Missed win:     	---       	Black=1      Mistake:       	White=2     	Black=1      Inaccurate:     	White=5     	---        OK:         	White=20    	Black=27     Best:        	White=5     	Black=1      Strong:       	---       	Black=1} 1/2-1/2

[Event "NY Presidents Day Schiller-C 2024"]
[Site "New York"]
[Date "2024.02.19"]
[Round "7.5"]
[White "Gaw, Chloe"]
[Black "Plat, Vojtech"]
[Result "0-1"]
[ECO "D08"]
[WhiteElo "1928"]
[BlackElo "2516"]
[Annotator "RC"]
[PlyCount "121"]
[EventDate "2024.02.14"]
[EventType "schev"]
[EventCountry "USA"]
[SourceTitle "playchess.com"]
[Source "ChessBase"]
[SourceQuality "1"]
[TimeControl "5400+30"]

1. d4 {[%emt 1:31:00]} d5 {[%emt 0:06:01]} 2. c4 {[%emt 0:00:00]} e5 {[%emt 0:00:04]} 3. dxe5 {[%emt 0:00:00]} d4 {[%emt 0:00:12]} 4. Nf3 {[%emt 0:00:00]} Nc6 {[%emt 0:00:05]} 5. a3 {[%emt 0:00:00]} Nge7 {[%emt 0:00:54]} 6. Nbd2 {[%emt 0:00:00]} Be6 {[%emt 0:05:17]} 7. Nb3 {[%emt 0:00:00]} Bxc4 {[%emt 0:00:13]} 8. Nbxd4 {[%emt 0:00:00]} Qd5 {[%emt 0:00:52]} 9. Nxc6 {[%emt 0:00:00]} Qxd1+ {[%emt 0:00:19]} 10. Kxd1 {[%emt 0:00:00]} Nxc6 {[%emt 0:00:06]} 11. Kc2 {[%emt 0:00:00]} Bd5 {[%emt 0:00:23]} 12. e3 {[%emt 0:00:00]} O-O-O {[%emt 0:00:40]} 13. Bd3 {[%emt 0:00:00]} g6 {[%emt 0:00:10]} 14. Bd2 {[%emt 0:00:00]} Bg7 {[%emt 0:01:07]} 15. Bc3 {[%emt 0:00:00]} Bxf3 {[%emt 0:00:28]} 16. gxf3 {[%emt 0:00:00]} Bxe5 {[%emt 0:00:06]} 17. Rad1 {[%emt 0:00:00]} Bxc3 {[%emt 0:00:07]} 18. Kxc3 {[%emt 0:00:00]} Rd6 {[%emt 0:01:06]} 19. Be2 {[%emt 0:00:00]} Rf6 {[%emt 0:00:52]} 20. Rd2 {[%emt 0:00:00]} Rd8 {[%emt 0:01:14]} 21. Rhd1 {[%emt 0:00:00]} Rxd2 {[%emt 0:00:07]} 22. Rxd2 {[%emt 0:00:00]} g5 {[%emt 0:00:35]} 23. Rd5 {[%emt 0:00:00]} h6 {[%emt 0:00:04]} 24. h4 {[%emt 0:00:00]} Ne7 {[%emt 0:00:09]} 25. Rc5 {[%emt 0:00:00]} Rg6 {[%emt 0:01:22]} 26. hxg5 {[%emt 0:00:00]} hxg5 {[%emt 0:00:01]} 27. Re5 {[%emt 0:00:00]} Kd7 {[%emt 0:00:07]} 28. Bc4 {[%emt 0:00:00]} f6 {[%emt 0:03:25]} 29. Re4 {[%emt 0:00:00]} f5 {[%emt 0:00:50]} 30. Rd4+ {[%emt 0:00:00]} Ke8 {[%emt 0:00:08]} 31. Rd1 {[%emt 0:00:00]} Rc6 {[%emt 0:01:58]} 32. Kb3 {[%emt 0:00:00]} Rh6 {[%emt 0:00:11]} 33. Rg1 {[%emt 0:00:00]} Rh2 {[%emt 0:01:14]} 34. Rxg5 {[%emt 0:00:00]} Rxf2 {[%emt 0:00:05]} 35. Rg3 {[%emt 0:00:00]} Kd7 {[%emt 0:00:05]} 36. Kc3 {[%emt 0:00:00]} Kd6 {[%emt 0:01:20]} 37. Rh3 {[%emt 0:00:00]} c6 {[%emt 0:00:26]} 38. Rh6+ {[%emt 0:00:00]} Kd7 {[%emt 0:00:09]} 39. Be6+ {[%emt 0:00:00]} Kc7 {[%emt 0:00:06]} 40. Rh3 {[%emt 0:00:00]} Re2 {[%emt 0:00:08]} 41. f4 {[%emt 0:00:00]} Kd6 {[%emt 0:00:03]} 42. Bc4 {[%emt 0:00:00]} Nd5+ {[%emt 0:00:03]} 43. Kd3 {[%emt 0:05:56]} Rxb2 {[%emt 0:00:07]} 44. Rh6+ {[%emt 0:01:20]} Kc5 {[%emt 0:00:11]} 45. Bxd5 {[%emt 0:00:52]} cxd5 {[%emt 0:00:37]} 46. Rf6 {[%emt 0:02:11]} Rb3+ {[%emt 0:00:04]} 47. Ke2 {[%emt 0:00:43]} Rxa3 {[%emt 0:00:14]} 48. Rxf5 {[%emt 0:00:23]} Kd6 {[%emt 0:00:27]} 49. Re5 {[%emt 0:01:14]} Ra4 {[%emt 0:00:42]} 50. Kd3 {[%emt 0:02:44]} b5 {[%emt 0:00:57]} 51. Re8 {[%emt 0:00:50]} Ra1 {[%emt 0:00:04]} 52. Rd8+ {[%emt 0:04:17]} Kc5 {[%emt 0:00:26]} 53. Rc8+ {[%emt 0:00:40]} Kb4 {[%emt 0:00:04]} 54. Kd4 {[%emt 0:05:20]} a5 {[%emt 0:01:40]} 55. Kxd5 {[%emt 0:00:00]} a4 {[%emt 0:00:03]} 56. f5 {[%emt 0:00:00]} a3 {[%emt 0:00:06]} 57. Ke6 {[%emt 0:00:00]} Re1 {[%emt 0:00:16]} 58. f6 {[%emt 0:00:00]} a2 {[%emt 0:00:22]} 59. f7 {[%emt 0:00:38]} Rxe3+ {[%emt 0:00:05]} 60. Kd5 {[%emt 0:01:06]} Rf3 {[%emt 0:00:08]} 61. Kd4 {[%emt 0:01:46]} 0-1

[Event "NY Presidents Day Schiller-C 2024"]
[Site "New York"]
[Date "2024.02.19"]
[Round "7.6"]
[White "Mou, Iris"]
[Black "Martin Del Campo Cardenas, Roberto Abel"]
[Result "0-1"]
[ECO "B52"]
[WhiteElo "2128"]
[BlackElo "2205"]
[Annotator "RC"]
[PlyCount "124"]
[EventDate "2024.02.14"]
[EventType "schev"]
[EventCountry "USA"]
[SourceTitle "playchess.com"]
[Source "ChessBase"]
[SourceQuality "1"]
[TimeControl "5400+30"]

1. e4 {[%emt 0:00:01]} c5 {[%emt 0:01:53]} 2. Nf3 {[%emt 0:00:10]} d6 {[%emt 0:00:08]} 3. Bb5+ {[%emt 0:00:09]} Bd7 {[%emt 0:00:06]} 4. Bxd7+ {[%emt 0:00:09]} Qxd7 {[%emt 0:00:06]} 5. O-O {[%emt 0:00:10]} Nc6 {[%emt 0:00:04]} 6. c3 {[%emt 0:00:09]} Nf6 {[%emt 0:00:20]} 7. d4 {[%emt 0:00:07]} cxd4 {[%emt 0:00:07]} 8. cxd4 {[%emt 0:00:07]} d5 {[%emt 0:00:03]} 9. e5 {[%emt 0:00:09]} Ne4 {[%emt 0:00:05]} 10. Re1 {[%emt 0:02:03]} e6 {[%emt 0:00:29]} 11. a3 {[%emt 0:00:07]} Be7 {[%emt 0:00:20]} 12. Qd3 {[%emt 0:00:17]} Na5 {[%emt 0:11:30]} 13. Nbd2 {[%emt 0:08:11]} Nxd2 {[%emt 0:01:47]} 14. Bxd2 {[%emt 0:00:11]} Qa4 {[%emt 0:05:07]} 15. Re3 {[%emt 0:03:03]} Nc6 {[%emt 0:02:09]} 16. b3 {[%emt 0:12:09]} Qa6 {[%emt 0:00:07]} 17. Qb1 {[%emt 0:00:30]} Qb6 {[%emt 0:02:43]} 18. Bc3 {[%emt 0:03:15]} a5 {[%emt 0:02:42]} 19. h4 {[%emt 0:04:14]} h6 {[%emt 0:01:53]} 20. h5 {[%emt 0:02:14]} Rc8 {[%emt 0:13:28]} 21. Qd1 {[%emt 0:07:17]} Rc7 {[%emt 0:07:29]} 22. Nh2 {[%emt 0:06:04]} O-O {[%emt 0:17:21]} 23. Rg3 {[%emt 0:07:46]} Rfc8 {[%emt 0:01:03]} 24. Qd2 {[%emt 0:05:43]} Bh4 {[%emt 0:09:02]} 25. Rd3 {[%emt 0:07:27]} Qxb3 {[%emt 0:01:30]} 26. Bb4 {[%emt 0:08:47]} Nxd4 {[%emt 0:03:35]} 27. Rxb3 {[%emt 0:17:04]} Nxb3 {[%emt 0:00:11]} 28. Qb2 {[%emt 0:00:14]} Nxa1 {[%emt 0:01:22]} 29. Bd2 {[%emt 0:01:17]} Rc2 {[%emt 0:03:40]} 30. Qxb7 {[%emt 0:00:09]} Bxf2+ {[%emt 0:00:29]} 31. Kxf2 {[%emt 0:02:15]} Rxd2+ {[%emt 0:00:04]} 32. Kg3 {[%emt 0:00:20]} Rdc2 {[%emt 0:02:29]} 33. Nf3 {[%emt 0:00:22]} R2c3 {[%emt 0:00:38]} 34. Kh2 {[%emt 0:01:51]} Nb3 {[%emt 0:00:39]} 35. Qb6 {[%emt 0:01:12]} d4 {[%emt 0:01:00]} 36. Nxd4 {[%emt 0:01:02]} Nxd4 {[%emt 0:00:05]} 37. Qxd4 {[%emt 0:00:05]} Rxa3 {[%emt 0:00:03]} 38. Qa7 {[%emt 0:01:23]} Ra2 {[%emt 0:01:06]} 39. Qa6 {[%emt 0:00:47]} Rd8 {[%emt 0:02:16]} 40. Qa7 {[%emt 0:00:45]} a4 {[%emt 0:01:30]} 41. Qa5 {[%emt 0:01:02]} Rd5 {[%emt 0:03:09]} 42. Qa8+ {[%emt 0:00:14]} Kh7 {[%emt 0:00:02]} 43. Qb7 {[%emt 0:00:10]} Rdd2 {[%emt 0:03:58]} 44. Qe4+ {[%emt 0:00:29]} g6 {[%emt 0:00:30]} 45. hxg6+ {[%emt 0:00:07]} Kg7 {[%emt 0:00:01]} 46. gxf7 {[%emt 0:00:34]} Rxg2+ {[%emt 0:00:05]} 47. Kh3 {[%emt 0:00:13]} Rh2+ {[%emt 0:00:17]} 48. Kg3 {[%emt 0:00:07]} Rag2+ {[%emt 0:00:56]} 49. Kf3 {[%emt 0:00:06]} Rf2+ {[%emt 0:01:02]} 50. Kg3 {[%emt 0:00:05]} Rhg2+ {[%emt 0:00:27]} 51. Kh3 {[%emt 0:00:04]} a3 {[%emt 0:01:39]} 52. f8=Q+ {[%emt 0:01:59]} Kxf8 {[%emt 0:00:03]} 53. Qa8+ {[%emt 0:00:25]} Kg7 {[%emt 0:00:05]} 54. Qb7+ {[%emt 0:01:59]} Kh8 {[%emt 0:01:23]} 55. Qa8+ {[%emt 0:00:28]} Rg8 {[%emt 0:00:19]} 56. Qxa3 {[%emt 0:00:04]} Rf1 {[%emt 0:00:49]} 57. Kh2 {[%emt 0:00:19]} Rf5 {[%emt 0:00:29]} 58. Qh3 {[%emt 0:01:50]} Rg6 {[%emt 0:00:30]} 59. Qh4 {[%emt 0:00:00]} Rfg5 {[%emt 0:00:11]} 60. Kh3 {[%emt 0:00:22]} Rg3+ {[%emt 0:00:12]} 61. Kh2 {[%emt 0:00:22]} Rg2+ {[%emt 0:00:03]} 62. Kh3 {[%emt 0:00:36]} R6g3+ {[%emt 0:00:07]} 0-1